[Event "Niedersachsen-ch Meister 2024"]
[Site "Verden Aller"]
[Date "2024.01.06"]
[Round "6.10"]
[White "Bennemann, Ingmar"]
[Black "Evering, Soeren"]
[Result "1/2-1/2"]
[ECO "D38"]
[WhiteElo "1971"]
[BlackElo "2034"]
[Annotator "NA RC"]
[PlyCount "55"]
[EventDate "2024.01.01"]
[EventType "swiss"]
[EventCountry "GER"]
[SourceTitle "playchess.com"]
[Source "ChessBase"]
[SourceQuality "1"]
[TimeControl "40/5400+30:1800+30"]

1. d4 {[%emt 0:00:02]} Nf6 {[%emt 0:03:41]} 2. Nf3 {[%emt 0:00:08]} d5 {[%emt 0:00:16]} 3. c4 {[%emt 0:00:12]} e6 {[%emt 0:00:12]} 4. Nc3 {[%emt 0:00:13]} Bb4 {[%emt 0:00:31]} 5. Bg5 {[%emt 0:00:14]} h6 {[%emt 0:00:14]} 6. Bxf6 {[%emt 0:01:24]} Qxf6 {[%emt 0:00:21]} 7. g3 {[%emt 0:00:30]} c5 {[%emt 0:06:44]} 8. cxd5 {[%emt 0:03:08]} exd5 {[%emt 0:00:38]} 9. Bg2 {[%emt 0:01:21]} O-O {[%emt 0:06:15]} 10. O-O {[%emt 0:00:14]} Bxc3 {[%emt 0:06:56]} 11. bxc3 {[%emt 0:00:08]} Rd8 {[%emt 0:12:24]} 12. Qa4 {[%emt 0:12:30]} Nc6 {[%emt 0:09:15]} 13. dxc5 {[%emt 0:06:55]} Qxc3 {[%emt 0:03:30]} 14. Rac1 {[%emt 0:00:20]} Qf6 {[%emt 0:04:15]} 15. Rfd1 {[%emt 0:01:38]} Be6 {[%emt 0:03:06]} 16. e3 {[%emt 0:03:11]} Rac8 {[%emt 0:10:56]} 17. Rd2 {[%emt 0:03:07]} a6 {[%emt 0:01:35]} 18. Qf4 {[%emt 0:22:35]} Qxf4 {[%emt 0:00:52]} 19. gxf4 {[%emt 0:00:07]} Na5 {[%emt 0:05:49]} 20. Rdd1 {[%emt 0:14:27]} Nc4 {[%emt 0:02:43]} 21. Nd4 {[%emt 0:06:31]} g6 {[%emt 0:10:42]} 22. Bf1 {[%emt 0:07:46]} Na5 {[%emt 0:06:50]} 23. h4 {[%emt 0:07:21]} Nc6 {[%emt 0:00:28]} 24. Nb3 {[%emt 0:01:37]} Bg4 {[%emt 0:02:45]} 25. Rd2 {[%emt 0:00:26]} Bf3 {[%emt 0:01:22]} 26. Kh2 {[%emt 0:00:05]} Ne7 {[%emt 0:00:31]} 27. Bh3 {[%emt 0:07:50]} Rc7 {[%emt 0:00:15]} 28. Nd4 {[%emt 0:00:00]} 1/2-1/2

[Event "Niedersachsen-ch Meister 2024"]
[Site "Verden Aller"]
[Date "2024.01.06"]
[Round "6.11"]
[White "Mimkes, Antal"]
[Black "Aden, Tammo"]
[Result "1/2-1/2"]
[ECO "B12"]
[WhiteElo "1823"]
[BlackElo "2025"]
[Annotator "NA RC"]
[PlyCount "67"]
[EventDate "2024.01.01"]
[EventType "swiss"]
[EventCountry "GER"]
[SourceTitle "playchess.com"]
[Source "ChessBase"]
[SourceQuality "1"]
[TimeControl "40/5400+30:1800+30"]

1. e4 {[%emt 0:00:09]} c6 {[%emt 0:00:11]} 2. d4 {[%emt 0:00:12]} d5 {[%emt 0:00:27]} 3. e5 {[%emt 0:00:23]} Bf5 {[%emt 0:00:11]} 4. h4 {[%emt 0:00:08]} Qb6 {[%emt 0:00:21]} 5. g4 {[%emt 0:02:25]} Bd7 {[%emt 0:00:11]} 6. c3 {[%emt 0:01:31]} e6 {[%emt 0:03:37]} 7. Bd3 {[%emt 0:03:15]} c5 {[%emt 0:02:09]} 8. Ne2 {[%emt 0:04:02]} Nc6 {[%emt 0:01:44]} 9. Bc2 {[%emt 0:06:03]} Rc8 {[%emt 0:05:05]} 10. a3 {[%emt 0:04:48]} a5 {[%emt 0:14:32]} 11. O-O {[%emt 0:10:20]} Qd8 {[%emt 0:10:48]} 12. g5 {[%emt 0:03:45]} h6 {[%emt 0:06:50]} 13. Ng3 {[%emt 0:07:19]} hxg5 {[%emt 0:02:20]} 14. hxg5 {[%emt 0:02:08]} g6 {[%emt 0:03:26]} 15. Be3 {[%emt 0:06:40]} Qb6 {[%emt 0:10:15]} 16. Nd2 {[%emt 0:08:34]} cxd4 {[%emt 0:08:17]} 17. cxd4 {[%emt 0:01:24]} Nge7 {[%emt 0:00:45]} 18. Nb3 {[%emt 0:03:40]} Nf5 {[%emt 0:04:23]} 19. Bxf5 {[%emt 0:05:13]} gxf5 {[%emt 0:01:03]} 20. Nh5 {[%emt 0:05:29]} Rxh5 {[%emt 0:02:49]} 21. Qxh5 {[%emt 0:00:17]} Qxb3 {[%emt 0:00:10]} 22. g6 {[%emt 0:03:50]} fxg6 {[%emt 0:00:31]} 23. Qxg6+ {[%emt 0:00:47]} Kd8 {[%emt 0:00:10]} 24. Rac1 {[%emt 0:00:31]} Qd3 {[%emt 0:04:00]} 25. Rc3 {[%emt 0:00:35]} Qe2 {[%emt 0:00:42]} 26. f3 {[%emt 0:00:50]} Qxb2 {[%emt 0:05:24]} 27. Rfc1 {[%emt 0:00:56]} Be7 {[%emt 0:00:39]} 28. Qf7 {[%emt 0:01:54]} Qe2 {[%emt 0:01:00]} 29. Bh6 {[%emt 0:09:07]} Bh4 {[%emt 0:05:48]} 30. Qf8+ {[%emt 0:03:10]} Be8 {[%emt 0:01:21]} 31. Qd6+ {[%emt 0:00:22]} Bd7 {[%emt 0:00:04]} 32. Qf8+ {[%emt 0:00:16]} Be8 {[%emt 0:00:05]} 33. Qd6+ {[%emt 0:01:47]} Bd7 {[%emt 0:00:04]} 34. Qf8+ {[%emt 0:00:27]} 1/2-1/2

[Event "Niedersachsen-ch Meister 2024"]
[Site "Verden Aller"]
[Date "2024.01.06"]
[Round "6.12"]
[White "Muecke, Leonard"]
[Black "Bundan, Edward"]
[Result "1/2-1/2"]
[ECO "B30"]
[WhiteElo "1694"]
[BlackElo "1706"]
[Annotator "NA RC"]
[PlyCount "68"]
[EventDate "2024.01.01"]
[EventType "swiss"]
[EventCountry "GER"]
[SourceTitle "playchess.com"]
[Source "ChessBase"]
[SourceQuality "1"]
[TimeControl "40/5400+30:1800+30"]

1. e4 {[%emt 0:10:08]} c5 {[%emt 0:00:06]} 2. Nf3 {[%emt 0:01:27]} Nc6 {[%emt 0:00:11]} 3. d3 {[%emt 0:00:23]} d5 {[%emt 0:02:45]} 4. Nbd2 {[%emt 0:02:29]} Bg4 {[%emt 0:01:43]} 5. h3 {[%emt 0:03:21]} Bxf3 {[%emt 0:01:37]} 6. Nxf3 {[%emt 0:06:58]} dxe4 {[%emt 0:00:21]} 7. dxe4 {[%emt 0:00:45]} Qxd1+ {[%emt 0:00:13]} 8. Kxd1 {[%emt 0:00:06]} O-O-O+ {[%emt 0:00:14]} 9. Bd2 {[%emt 0:15:29]} h6 {[%emt 0:23:02]} 10. Bb5 {[%emt 0:12:41]} Nd4 {[%emt 0:13:21]} 11. Bc4 {[%emt 0:01:18]} Nxf3 {[%emt 0:03:03]} 12. gxf3 {[%emt 0:00:09]} e6 {[%emt 0:00:37]} 13. c3 {[%emt 0:11:06]} Nf6 {[%emt 0:07:25]} 14. Kc2 {[%emt 0:00:36]} Bd6 {[%emt 0:02:22]} 15. Be3 {[%emt 0:03:15]} b6 {[%emt 0:03:05]} 16. a3 {[%emt 0:02:30]} g5 {[%emt 0:38:25]} 17. b4 {[%emt 0:01:40]} Nd7 {[%emt 0:00:00]} 18. Rab1 {[%emt 0:04:56]} cxb4 {[%emt 0:00:00]} 19. axb4 {[%emt 0:01:00]} Ne5 {[%emt 0:00:00]} 20. Be2 {[%emt 0:00:24]} Ng6 {[%emt 0:00:00]} 21. Rhd1 {[%emt 0:04:13]} Bf4 {[%emt 0:00:00]} 22. Rxd8+ {[%emt 0:01:11]} Rxd8 {[%emt 0:00:00]} 23. Rd1 {[%emt 0:00:19]} Rxd1 {[%emt 0:00:00]} 24. Bxd1 {[%emt 0:00:12]} Bxe3 {[%emt 0:00:00]} 25. fxe3 {[%emt 0:00:09]} Kd7 {[%emt 0:00:00]} 26. Kd3 {[%emt 0:03:45]} b5 {[%emt 0:00:00]} 27. Be2 {[%emt 0:02:21]} Kc6 {[%emt 0:00:00]} 28. Kd4 {[%emt 0:01:29]} f6 {[%emt 0:00:00]} 29. Bd1 {[%emt 0:00:28]} Nh4 {[%emt 0:00:00]} 30. e5 {[%emt 0:05:13]} Nf5+ {[%emt 0:00:00]} 31. Ke4 {[%emt 0:00:45]} Ng3+ {[%emt 0:00:00]} 32. Kd4 {[%emt 0:00:16]} Nf5+ {[%emt 0:00:00]} 33. Ke4 {[%emt 0:00:10]} Ng3+ {[%emt 0:00:00]} 34. Kd4 {[%emt 0:00:10]} Nf5+ {[%emt 0:00:00]} 1/2-1/2

[Event "Niedersachsen-ch Meister 2024"]
[Site "Verden Aller"]
[Date "2024.01.06"]
[Round "6.13"]
[White "Hans, Julian"]
[Black "Renner, Kai"]
[Result "1/2-1/2"]
[ECO "C01"]
[WhiteElo "1925"]
[BlackElo "2153"]
[Annotator "RC"]
[PlyCount "49"]
[EventDate "2024.01.01"]
[EventType "swiss"]
[EventCountry "GER"]
[SourceTitle "playchess.com"]
[Source "ChessBase"]
[SourceQuality "1"]
[TimeControl "40/5400+30:1800+30"]

1. e4 {[%emt 0:00:06]} e6 {[%emt 0:00:09]} 2. d4 {[%emt 0:00:15]} d5 {[%emt 0:00:05]} 3. Bd3 {[%emt 0:00:31]} dxe4 {[%emt 0:00:24]} 4. Bxe4 {[%emt 0:00:12]} Nf6 {[%emt 0:00:14]} 5. Bf3 {[%emt 0:00:06]} c5 {[%emt 0:00:27]} 6. Ne2 {[%emt 0:00:34]} Nc6 {[%emt 0:00:27]} 7. Be3 {[%emt 0:00:39]} cxd4 {[%emt 0:01:16]} 8. Nxd4 {[%emt 0:00:16]} Ne5 {[%emt 0:00:51]} 9. Nc3 {[%emt 0:04:45]} a6 {[%emt 0:01:31]} 10. O-O {[%emt 0:01:37]} Be7 {[%emt 0:01:51]} 11. Qe2 {[%emt 0:02:10]} O-O {[%emt 0:01:10]} 12. Rad1 {[%emt 0:00:36]} Qc7 {[%emt 0:01:56]} 13. Rfe1 {[%emt 0:07:34]} Bd7 {[%emt 0:01:38]} 14. Bf4 {[%emt 0:11:02]} Nxf3+ {[%emt 0:00:11]} 15. Qxf3 {[%emt 0:00:12]} Qb6 {[%emt 0:01:04]} 16. Ne4 {[%emt 0:22:34]} Qxb2 {[%emt 0:20:08]} 17. Be5 {[%emt 0:07:09]} Nxe4 {[%emt 0:12:30]} 18. Qxe4 {[%emt 0:03:33]} Qxa2 {[%emt 0:11:21]} 19. Qxb7 {[%emt 0:05:35]} Rad8 {[%emt 0:09:43]} 20. Ra1 {[%emt 0:07:36]} Qc4 {[%emt 0:01:47]} 21. Qxa6 {[%emt 0:01:12]} Qxa6 {[%emt 0:08:12]} 22. Rxa6 {[%emt 0:00:42]} Bc8 {[%emt 0:01:17]} 23. Ra4 {[%emt 0:03:33]} Bc5 {[%emt 0:10:44]} 24. Rc4 {[%emt 0:07:20]} Bxd4 {[%emt 0:10:30]} 25. Rxd4 {[%emt 0:02:18]} 1/2-1/2

[Event "Niedersachsen-ch Meister 2024"]
[Site "Verden Aller"]
[Date "2024.01.07"]
[Round "7.2"]
[White "Hampel, Felix"]
[Black "Voege, Tobias"]
[Result "1/2-1/2"]
[ECO "A13"]
[WhiteElo "2294"]
[BlackElo "2283"]
[Annotator "RC"]
[PlyCount "95"]
[EventDate "2024.01.01"]
[EventType "swiss"]
[EventCountry "GER"]
[SourceTitle "playchess.com"]
[Source "ChessBase"]
[SourceQuality "1"]
[TimeControl "40/5400+30:1800+30"]

1. c4 {[%emt 0:00:07]} e6 {[%emt 0:00:54]} 2. Nf3 {[%emt 0:00:05]} Nf6 {[%emt 0:00:24]} 3. Nc3 {[%emt 0:00:13]} d5 {[%emt 0:03:27]} 4. e3 {[%emt 0:00:35]} Be7 {[%emt 0:09:37]} 5. b3 {[%emt 0:00:37]} O-O {[%emt 0:03:11]} 6. Bb2 {[%emt 0:00:23]} a5 {[%emt 0:01:48]} 7. Qc2 {[%emt 0:05:15]} b6 {[%emt 0:07:17]} 8. cxd5 {[%emt 0:23:44]} exd5 {[%emt 0:00:38]} 9. Be2 {[%emt 0:00:37]} Ba6 {[%emt 0:08:39]} 10. Rc1 {[%emt 0:02:54]} Bxe2 {[%emt 0:10:32]} 11. Nxe2 {[%emt 0:00:12]} Na6 {[%emt 0:00:13]} 12. Ned4 {[%emt 0:08:29]} c5 {[%emt 0:04:42]} 13. Nf5 {[%emt 0:01:52]} a4 {[%emt 0:08:38]} 14. O-O {[%emt 0:02:16]} Nb4 {[%emt 0:03:24]} 15. Qb1 {[%emt 0:00:20]} axb3 {[%emt 0:00:33]} 16. axb3 {[%emt 0:00:07]} Ne8 {[%emt 0:06:56]} 17. d4 {[%emt 0:06:56]} Na2 {[%emt 0:03:55]} 18. Rc2 {[%emt 0:00:38]} Nb4 {[%emt 0:00:12]} 19. Rd2 {[%emt 0:13:05]} Bf6 {[%emt 0:08:32]} 20. Rfd1 {[%emt 0:02:12]} g6 {[%emt 0:04:30]} 21. Nh6+ {[%emt 0:00:43]} Kh8 {[%emt 0:00:55]} 22. dxc5 {[%emt 0:02:27]} bxc5 {[%emt 0:00:42]} 23. Bxf6+ {[%emt 0:08:46]} Nxf6 {[%emt 0:01:42]} 24. Qb2 {[%emt 0:00:24]} Kg7 {[%emt 0:02:49]} 25. Ng4 {[%emt 0:01:11]} h5 {[%emt 0:01:33]} 26. Nge5 {[%emt 0:00:56]} Ra2 {[%emt 0:02:04]} 27. Qc1 {[%emt 0:00:38]} Ra5 {[%emt 0:01:48]} 28. Qb2 {[%emt 0:06:37]} Ra2 {[%emt 0:01:03]} 29. Qb1 {[%emt 0:02:35]} Rxd2 {[%emt 0:01:05]} 30. Nxd2 {[%emt 0:00:18]} Nd7 {[%emt 0:00:48]} 31. Nxd7 {[%emt 0:02:15]} Qxd7 {[%emt 0:00:04]} 32. Qb2+ {[%emt 0:00:53]} f6 {[%emt 0:00:11]} 33. Qc3 {[%emt 0:01:02]} Qe7 {[%emt 0:00:40]} 34. Ra1 {[%emt 0:01:16]} Rd8 {[%emt 0:00:30]} 35. Nf3 {[%emt 0:00:50]} Rd7 {[%emt 0:00:36]} 36. h3 {[%emt 0:01:03]} Ra7 {[%emt 0:00:25]} 37. Rxa7 {[%emt 0:00:31]} Qxa7 {[%emt 0:00:04]} 38. g3 {[%emt 0:01:46]} Kf7 {[%emt 0:00:34]} 39. Kg2 {[%emt 0:00:44]} Qb6 {[%emt 0:00:41]} 40. Kg1 {[%emt 0:02:32]} Nc6 {[%emt 0:01:06]} 41. Qd3 {[%emt 0:05:55]} Ne7 {[%emt 0:02:33]} 42. Qc3 {[%emt 0:02:37]} Nf5 {[%emt 0:01:07]} 43. g4 {[%emt 0:01:26]} hxg4 {[%emt 0:00:46]} 44. hxg4 {[%emt 0:00:04]} Ne7 {[%emt 0:08:21]} 45. g5 {[%emt 0:03:02]} fxg5 {[%emt 0:04:24]} 46. Nxg5+ {[%emt 0:02:04]} Ke8 {[%emt 0:00:08]} 47. e4 {[%emt 0:02:38]} Qb4 {[%emt 0:07:02]} 48. Qxb4 {[%emt 0:03:24]} 1/2-1/2

[Event "Niedersachsen-ch Meister 2024"]
[Site "Verden Aller"]
[Date "2024.01.07"]
[Round "7.3"]
[White "Knuedel, Torben"]
[Black "Nechitaylo, Nikita"]
[Result "1-0"]
[ECO "B56"]
[WhiteElo "2287"]
[BlackElo "2221"]
[Annotator "RC"]
[PlyCount "73"]
[EventDate "2024.01.01"]
[EventType "swiss"]
[EventCountry "GER"]
[SourceTitle "playchess.com"]
[Source "ChessBase"]
[SourceQuality "1"]
[TimeControl "40/5400+30:1800+30"]

1. e4 {[%emt 0:00:14]} c5 {[%emt 0:00:04]} 2. Nc3 {[%emt 0:00:08]} Nc6 {[%emt 0:00:05]} 3. Nf3 {[%emt 0:00:08]} d6 {[%emt 0:00:10]} 4. d4 {[%emt 0:00:06]} cxd4 {[%emt 0:00:05]} 5. Nxd4 {[%emt 0:00:04]} Nf6 {[%emt 0:00:05]} 6. h3 {[%emt 0:06:26]} e5 {[%emt 0:03:55]} 7. Nf3 {[%emt 0:00:53]} Be7 {[%emt 0:01:00]} 8. Bc4 {[%emt 0:04:05]} Be6 {[%emt 0:01:16]} 9. Bb3 {[%emt 0:02:00]} O-O {[%emt 0:04:07]} 10. Bg5 {[%emt 0:09:01]} Nd7 {[%emt 0:05:59]} 11. Bxe7 {[%emt 0:04:48]} Qxe7 {[%emt 0:00:14]} 12. Nd5 {[%emt 0:01:44]} Qd8 {[%emt 0:07:43]} 13. O-O {[%emt 0:06:00]} Nc5 {[%emt 0:00:43]} 14. Re1 {[%emt 0:09:07]} f5 {[%emt 0:03:49]} 15. exf5 {[%emt 0:00:58]} Rxf5 {[%emt 0:00:32]} 16. Ne3 {[%emt 0:02:02]} Nxb3 {[%emt 0:06:48]} 17. axb3 {[%emt 0:00:09]} Rh5 {[%emt 0:01:19]} 18. Nd2 {[%emt 0:14:15]} Qg5 {[%emt 0:07:21]} 19. Ne4 {[%emt 0:02:07]} Qg6 {[%emt 0:10:22]} 20. Ng3 {[%emt 0:00:33]} Rh4 {[%emt 0:00:11]} 21. Qxd6 {[%emt 0:05:22]} Rd8 {[%emt 0:08:08]} 22. Qc5 {[%emt 0:00:59]} Rf8 {[%emt 0:10:31]} 23. Rad1 {[%emt 0:14:03]} h6 {[%emt 0:12:01]} 24. Rd2 {[%emt 0:01:09]} Rhf4 {[%emt 0:06:45]} 25. Nc4 {[%emt 0:01:38]} Bxc4 {[%emt 0:02:40]} 26. bxc4 {[%emt 0:00:06]} h5 {[%emt 0:00:38]} 27. Re4 {[%emt 0:02:38]} h4 {[%emt 0:01:26]} 28. Rxf4 {[%emt 0:00:14]} exf4 {[%emt 0:00:11]} 29. Rd6 {[%emt 0:02:02]} Qxc2 {[%emt 0:01:39]} 30. Qd5+ {[%emt 0:00:44]} Kh8 {[%emt 0:01:54]} 31. Ne4 {[%emt 0:01:17]} f3 {[%emt 0:00:28]} 32. gxf3 {[%emt 0:01:07]} Qc1+ {[%emt 0:00:47]} 33. Kg2 {[%emt 0:00:29]} Ne7 {[%emt 0:02:37]} 34. Qh5+ {[%emt 0:00:48]} Kg8 {[%emt 0:00:04]} 35. Re6 {[%emt 0:01:07]} Nc6 {[%emt 0:01:13]} 36. Ng5 {[%emt 0:01:25]} Qc2 {[%emt 0:00:13]} 37. Re4 {[%emt 0:00:33]} 1-0

[Event "Niedersachsen-ch Meister 2024"]
[Site "Verden Aller"]
[Date "2024.01.07"]
[Round "7.4"]
[White "Gentemann, Moritz"]
[Black "Pubantz, Jan"]
[Result "1/2-1/2"]
[ECO "D45"]
[WhiteElo "2239"]
[BlackElo "2288"]
[Annotator "RC"]
[PlyCount "27"]
[EventDate "2024.01.01"]
[EventType "swiss"]
[EventCountry "GER"]
[SourceTitle "playchess.com"]
[Source "ChessBase"]
[SourceQuality "1"]
[TimeControl "40/5400+30:1800+30"]

1. c4 {[%emt 0:01:57]} c6 {[%emt 0:01:20]} 2. Nf3 {[%emt 0:00:15]} d5 {[%emt 0:00:05]} 3. e3 {[%emt 0:00:11]} Nf6 {[%emt 0:00:09]} 4. Nc3 {[%emt 0:00:09]} e6 {[%emt 0:00:04]} 5. b3 {[%emt 0:00:24]} Bd6 {[%emt 0:00:12]} 6. Bb2 {[%emt 0:00:28]} O-O {[%emt 0:00:06]} 7. d4 {[%emt 0:00:27]} Nbd7 {[%emt 1:32:04]} 8. Be2 {[%emt 0:00:10]} Ne4 {[%emt 0:00:00]} 9. Nxe4 {[%emt 0:19:24]} dxe4 {[%emt 0:00:00]} 10. Nd2 {[%emt 0:00:13]} f5 {[%emt 0:00:00]} 11. c5 {[%emt 0:12:06]} Bc7 {[%emt 0:00:00]} 12. Qc2 {[%emt 0:03:24]} Nf6 {[%emt 0:00:00]} 13. a3 {[%emt 0:03:03]} Nd5 {[%emt 0:00:00]} 14. Nc4 {[%emt 0:04:40]} 1/2-1/2

[Event "Niedersachsen-ch Meister 2024"]
[Site "Verden Aller"]
[Date "2024.01.07"]
[Round "7.5"]
[White "Laubsch, Bernd"]
[Black "Polster, Christian"]
[Result "0-1"]
[ECO "B01"]
[WhiteElo "2259"]
[BlackElo "2244"]
[Annotator "RC"]
[PlyCount "122"]
[EventDate "2024.01.01"]
[EventType "swiss"]
[EventCountry "GER"]
[SourceTitle "playchess.com"]
[Source "ChessBase"]
[SourceQuality "1"]
[TimeControl "40/5400+30:1800+30"]

1. e4 {[%emt 0:00:02]} g6 {[%emt 0:01:04]} 2. d4 {[%emt 0:00:15]} Bg7 {[%emt 0:00:27]} 3. Nf3 {[%emt 0:06:07]} d5 {[%emt 0:06:42]} 4. exd5 {[%emt 0:01:21]} Qxd5 {[%emt 0:00:22]} 5. Nc3 {[%emt 0:01:48]} Qd8 {[%emt 0:00:29]} 6. Bc4 {[%emt 0:03:08]} Nh6 {[%emt 0:06:19]} 7. Bf4 {[%emt 0:10:49]} Nf5 {[%emt 0:02:13]} 8. Be5 {[%emt 0:13:42]} O-O {[%emt 0:02:32]} 9. O-O {[%emt 0:02:43]} Nd7 {[%emt 0:04:41]} 10. Bxg7 {[%emt 0:02:00]} Kxg7 {[%emt 0:01:52]} 11. Re1 {[%emt 0:05:17]} Nb6 {[%emt 0:09:30]} 12. Bb3 {[%emt 0:00:58]} a5 {[%emt 0:01:07]} 13. a4 {[%emt 0:00:10]} c6 {[%emt 0:00:38]} 14. Qe2 {[%emt 0:05:16]} Kg8 {[%emt 0:08:06]} 15. Rad1 {[%emt 0:04:25]} Nd5 {[%emt 0:04:33]} 16. Nxd5 {[%emt 0:11:16]} cxd5 {[%emt 0:00:14]} 17. h3 {[%emt 0:00:25]} e6 {[%emt 0:00:36]} 18. c3 {[%emt 0:03:39]} Bd7 {[%emt 0:01:39]} 19. Ne5 {[%emt 0:01:58]} Nd6 {[%emt 0:04:53]} 20. h4 {[%emt 0:07:17]} Be8 {[%emt 0:07:57]} 21. h5 {[%emt 0:01:18]} g5 {[%emt 0:10:35]} 22. Ng4 {[%emt 0:03:48]} Ne4 {[%emt 0:03:41]} 23. Bc2 {[%emt 0:04:04]} f5 {[%emt 0:00:49]} 24. f3 {[%emt 0:01:19]} Bxh5 {[%emt 0:01:47]} 25. Nh2 {[%emt 0:05:12]} Nd6 {[%emt 0:02:17]} 26. Qxe6+ {[%emt 0:00:30]} Bf7 {[%emt 0:00:08]} 27. Qe2 {[%emt 0:01:55]} Re8 {[%emt 0:01:20]} 28. Qf2 {[%emt 0:00:44]} Qf6 {[%emt 0:01:46]} 29. Nf1 {[%emt 0:00:56]} f4 {[%emt 0:01:28]} 30. Re5 {[%emt 0:01:57]} Rxe5 {[%emt 0:02:41]} 31. dxe5 {[%emt 0:00:01]} Qxe5 {[%emt 0:00:09]} 32. Re1 {[%emt 0:00:13]} Qf6 {[%emt 0:00:33]} 33. Qc5 {[%emt 0:00:30]} Nc4 {[%emt 0:09:21]} 34. b3 {[%emt 0:01:14]} b6 {[%emt 0:00:45]} 35. Qc7 {[%emt 0:00:19]} Qd6 {[%emt 0:01:38]} 36. Bxh7+ {[%emt 0:00:32]} Kg7 {[%emt 0:00:29]} 37. Re7 {[%emt 0:01:10]} Qxc7 {[%emt 0:01:42]} 38. Rxc7 {[%emt 0:00:01]} Nd6 {[%emt 0:00:33]} 39. Bc2 {[%emt 0:00:16]} Rc8 {[%emt 0:00:56]} 40. Rxc8 {[%emt 0:00:06]} Nxc8 {[%emt 0:00:04]} 41. Kf2 {[%emt 0:30:56]} Kf6 {[%emt 0:31:37]} 42. g3 {[%emt 0:00:00]} Nd6 {[%emt 0:00:00]} 43. Nd2 {[%emt 0:00:00]} Ke5 {[%emt 0:00:00]} 44. gxf4+ {[%emt 0:00:00]} gxf4 {[%emt 0:00:00]} 45. Ke2 {[%emt 0:00:00]} d4 {[%emt 0:00:00]} 46. Nb1 {[%emt 0:00:00]} dxc3 {[%emt 0:00:00]} 47. Nxc3 {[%emt 0:00:00]} Nf5 {[%emt 0:00:00]} 48. Bxf5 {[%emt 0:03:36]} Kxf5 {[%emt 0:00:00]} 49. Ne4 {[%emt 0:00:44]} Ke5 {[%emt 0:00:00]} 50. Nd2 {[%emt 0:01:01]} Kd4 {[%emt 0:00:00]} 51. Kd1 {[%emt 0:00:24]} Kd3 {[%emt 0:00:00]} 52. Kc1 {[%emt 0:00:29]} Bd5 {[%emt 0:00:00]} 53. Kd1 {[%emt 0:00:28]} Bg8 {[%emt 0:00:00]} 54. Kc1 {[%emt 0:00:37]} Be6 {[%emt 0:00:00]} 55. Kd1 {[%emt 0:00:30]} Bd5 {[%emt 0:00:00]} 56. Kc1 {[%emt 0:00:19]} Kc3 {[%emt 0:00:00]} 57. Kd1 {[%emt 0:00:44]} Bxb3+ {[%emt 0:00:00]} 58. Ke2 {[%emt 0:00:11]} Bxa4 {[%emt 0:00:00]} 59. Ne4+ {[%emt 0:00:01]} Kc2 {[%emt 0:00:00]} 60. Nd6 {[%emt 0:00:35]} Bd7 {[%emt 0:00:00]} 61. Nc4 {[%emt 0:01:13]} Bb5 {[%emt 0:00:00]} 0-1

[Event "Niedersachsen-ch Meister 2024"]
[Site "Verden Aller"]
[Date "2024.01.07"]
[Round "7.6"]
[White "Mueer, Sebastian"]
[Black "Riemay, David"]
[Result "1/2-1/2"]
[ECO "E06"]
[WhiteElo "2189"]
[BlackElo "2213"]
[Annotator "RC"]
[PlyCount "83"]
[EventDate "2024.01.01"]
[EventType "swiss"]
[EventCountry "GER"]
[SourceTitle "playchess.com"]
[Source "ChessBase"]
[SourceQuality "1"]
[TimeControl "40/5400+30:1800+30"]

1. d4 {[%emt 0:08:13]} Nf6 {[%emt 0:00:15]} 2. c4 {[%emt 0:00:26]} e6 {[%emt 0:00:06]} 3. Nf3 {[%emt 0:00:06]} d5 {[%emt 0:00:08]} 4. g3 {[%emt 0:00:07]} Be7 {[%emt 0:00:07]} 5. Bg2 {[%emt 0:00:12]} Ne4 {[%emt 0:00:09]} 6. O-O {[%emt 0:01:27]} f5 {[%emt 0:00:34]} 7. Nc3 {[%emt 0:04:12]} c6 {[%emt 0:04:57]} 8. Qc2 {[%emt 0:01:55]} Nd7 {[%emt 0:07:26]} 9. Be3 {[%emt 0:13:04]} O-O {[%emt 0:08:53]} 10. Rad1 {[%emt 0:04:57]} Qe8 {[%emt 0:03:50]} 11. Bf4 {[%emt 0:10:38]} g5 {[%emt 0:12:55]} 12. Bc7 {[%emt 0:09:41]} Qh5 {[%emt 0:03:12]} 13. Ne5 {[%emt 0:02:14]} Rf6 {[%emt 0:08:19]} 14. g4 {[%emt 0:04:17]} Qh4 {[%emt 0:07:14]} 15. Rd3 {[%emt 0:08:49]} fxg4 {[%emt 0:19:07]} 16. Nxe4 {[%emt 0:02:12]} dxe4 {[%emt 0:00:06]} 17. Rg3 {[%emt 0:00:38]} Nxe5 {[%emt 0:05:13]} 18. Bxe5 {[%emt 0:00:01]} Rh6 {[%emt 0:00:10]} 19. h3 {[%emt 0:00:14]} Qh5 {[%emt 0:03:27]} 20. Rxg4 {[%emt 0:02:03]} Bd7 {[%emt 0:00:03]} 21. Qxe4 {[%emt 0:01:10]} Be8 {[%emt 0:00:03]} 22. f4 {[%emt 0:02:06]} Bg6 {[%emt 0:00:43]} 23. Qe3 {[%emt 0:01:09]} Bf5 {[%emt 0:01:05]} 24. fxg5 {[%emt 0:01:37]} Rg6 {[%emt 0:01:01]} 25. Rg3 {[%emt 0:03:25]} Bxg5 {[%emt 0:00:18]} 26. Bf4 {[%emt 0:01:25]} Bf6 {[%emt 0:02:24]} 27. Kh2 {[%emt 0:04:01]} Rd8 {[%emt 0:01:43]} 28. Be5 {[%emt 0:00:38]} Bg5 {[%emt 0:00:27]} 29. Qf3 {[%emt 0:00:35]} Qxf3 {[%emt 0:01:19]} 30. Bxf3 {[%emt 0:00:01]} Be3 {[%emt 0:00:48]} 31. d5 {[%emt 0:08:52]} cxd5 {[%emt 0:00:25]} 32. cxd5 {[%emt 0:00:01]} exd5 {[%emt 0:00:15]} 33. Bxd5+ {[%emt 0:03:05]} Rxd5 {[%emt 0:00:04]} 34. Rxe3 {[%emt 0:00:16]} Bd7 {[%emt 0:01:01]} 35. Bf4 {[%emt 0:01:01]} Bc6 {[%emt 0:00:34]} 36. Rg1 {[%emt 0:00:37]} Kf7 {[%emt 0:01:04]} 37. Rxg6 {[%emt 0:00:07]} Kxg6 {[%emt 0:00:31]} 38. Kg3 {[%emt 0:00:50]} Rd1 {[%emt 0:00:38]} 39. Re6+ {[%emt 0:00:43]} Kf5 {[%emt 0:01:07]} 40. Re5+ {[%emt 0:00:23]} Kf6 {[%emt 0:01:03]} 41. Ra5 {[%emt 0:32:44]} a6 {[%emt 0:31:25]} 42. Rh5 {[%emt 0:00:00]} 1/2-1/2